[Event "Titled Tuesday Blitz February 21 Late 2023"]
[White "Risteski, Emil"]
[Black "Florescu, Codrut-Constantin"]
[WhiteFideId "15005267"]
[BlackFideId "1202200"]
[WhiteElo "2366"]
[BlackElo "2259"]
[Result "0-1"]
[Round "11"]
[TimeControl "180+2"]
[Date "2023.02.21"]
[WhiteClock "0:00:23"]
[BlackClock "0:00:22"]

1. Nf3 {[%clk 0:03:00]}  d5 {[%clk 0:02:59]} 2. d4 {[%clk 0:02:59]}  e6 {[%clk 0:03:00]} 3. c4 {[%clk 0:02:59]}  Nf6 {[%clk 0:03:00]} 4. g3 {[%clk 0:02:59]}  Be7 {[%clk 0:02:59]} 5. Bg2 {[%clk 0:03:00]}  O-O {[%clk 0:03:00]} 6. O-O {[%clk 0:03:00]}  c6 {[%clk 0:03:01]} 7. Qc2 {[%clk 0:02:59]}  Nbd7 {[%clk 0:03:01]} 8. Rd1 {[%clk 0:02:57]}  b6 {[%clk 0:03:01]} 9. b3 {[%clk 0:02:56]}  Bb7 {[%clk 0:02:58]} 10. Nc3 {[%clk 0:02:54]}  Ba6 {[%clk 0:02:53]} 11. e4 {[%clk 0:02:51]}  dxc4 {[%clk 0:02:52]} 12. Ne5 {[%clk 0:02:40]}  Nxe5 {[%clk 0:02:47]} 13. dxe5 {[%clk 0:02:41]}  Nd7 {[%clk 0:02:48]} 14. f4 {[%clk 0:02:22]}  Qc7 {[%clk 0:02:46]} 15. Be3 {[%clk 0:02:18]}  Nc5 {[%clk 0:02:45]} 16. Bf1 {[%clk 0:01:56]}  cxb3 {[%clk 0:02:41]} 17. axb3 {[%clk 0:01:57]}  Bxf1 {[%clk 0:02:40]} 18. Kxf1 {[%clk 0:01:56]}  a5 {[%clk 0:02:36]} 19. Rac1 {[%clk 0:01:50]}  Rad8 {[%clk 0:02:35]} 20. Rxd8 {[%clk 0:01:44]}  Rxd8 {[%clk 0:02:34]} 21. Bxc5 {[%clk 0:01:44]}  Bxc5 {[%clk 0:02:33]} 22. Na4 {[%clk 0:01:44]}  Ba3 {[%clk 0:01:20]} 23. Rd1 {[%clk 0:01:16]}  Rxd1+ {[%clk 0:01:18]} 24. Qxd1 {[%clk 0:01:17]}  b5 {[%clk 0:01:16]} 25. Nc3 {[%clk 0:01:15]}  Bb4 {[%clk 0:01:16]} 26. Ne2 {[%clk 0:01:12]}  Be7 {[%clk 0:01:12]} 27. Qc2 {[%clk 0:01:10]}  Qb6 {[%clk 0:01:09]} 28. f5 {[%clk 0:01:00]}  Qc5 {[%clk 0:00:56]} 29. Qb2 {[%clk 0:01:00]}  Bg5 {[%clk 0:00:40]} 30. h4 {[%clk 0:00:55]}  Be3 {[%clk 0:00:39]} 31. Kg2 {[%clk 0:00:49]}  h5 {[%clk 0:00:38]} 32. Qb1 {[%clk 0:00:37]}  Qxe5 {[%clk 0:00:34]} 33. Qd3 {[%clk 0:00:37]}  Bb6 {[%clk 0:00:27]} 34. Nf4 {[%clk 0:00:35]}  Qd4 {[%clk 0:00:26]} 35. Qc2 {[%clk 0:00:26]}  Qg1+ {[%clk 0:00:22]} 36. Kh3 {[%clk 0:00:23]}  Qh1+ {[%clk 0:00:22]} 0-1


[Site "https://www.chess.com"]

[Event "Titled Tuesday Blitz February 21 Late 2023"]
[White "Ibarra Jerez, Jose Carlos"]
[Black "Maltsevskaya, Aleksandra"]
[WhiteFideId "2226332"]
[BlackFideId "24174041"]
[WhiteElo "2563"]
[BlackElo "2390"]
[Result "1-0"]
[Round "11"]
[TimeControl "180+2"]
[Date "2023.02.21"]
[WhiteClock "0:00:51"]
[BlackClock "0:00:01"]

1. g4 {[%clk 0:02:52]}  d5 {[%clk 0:02:58]} 2. Bg2 {[%clk 0:02:52]}  c6 {[%clk 0:02:59]} 3. h3 {[%clk 0:02:51]}  e5 {[%clk 0:02:58]} 4. d3 {[%clk 0:02:50]}  Be6 {[%clk 0:02:53]} 5. Nd2 {[%clk 0:02:50]}  Nd7 {[%clk 0:02:52]} 6. e3 {[%clk 0:02:49]}  Bc5 {[%clk 0:02:52]} 7. Qe2 {[%clk 0:02:49]}  Ngf6 {[%clk 0:02:51]} 8. Ngf3 {[%clk 0:02:49]}  h6 {[%clk 0:02:45]} 9. b3 {[%clk 0:02:49]}  a5 {[%clk 0:02:44]} 10. Bb2 {[%clk 0:02:49]}  a4 {[%clk 0:02:44]} 11. Nxe5 {[%clk 0:02:47]}  axb3 {[%clk 0:02:37]} 12. axb3 {[%clk 0:02:41]}  Rxa1+ {[%clk 0:02:37]} 13. Bxa1 {[%clk 0:02:42]}  O-O {[%clk 0:02:33]} 14. O-O {[%clk 0:02:41]}  Nxe5 {[%clk 0:02:27]} 15. Bxe5 {[%clk 0:02:40]}  Nd7 {[%clk 0:02:28]} 16. Bb2 {[%clk 0:02:38]}  f5 {[%clk 0:02:26]} 17. f4 {[%clk 0:02:28]}  Qe7 {[%clk 0:02:07]} 18. Kh2 {[%clk 0:02:08]}  Nf6 {[%clk 0:01:36]} 19. gxf5 {[%clk 0:02:00]}  Bxf5 {[%clk 0:01:35]} 20. e4 {[%clk 0:02:01]}  Re8 {[%clk 0:01:12]} 21. Be5 {[%clk 0:01:53]}  Bd7 {[%clk 0:00:54]} 22. Bf3 {[%clk 0:01:48]}  Nh7 {[%clk 0:00:26]} 23. exd5 {[%clk 0:01:39]}  Bd6 {[%clk 0:00:15]} 24. Nc4 {[%clk 0:01:29]}  Bxe5 {[%clk 0:00:10]} 25. Nxe5 {[%clk 0:01:29]}  Qh4 {[%clk 0:00:09]} 26. Bg2 {[%clk 0:01:13]}  Nf6 {[%clk 0:00:05]} 27. dxc6 {[%clk 0:01:06]}  Bxc6 {[%clk 0:00:05]} 28. Bxc6 {[%clk 0:00:59]}  bxc6 {[%clk 0:00:05]} 29. Qg2 {[%clk 0:00:57]}  Rc8 {[%clk 0:00:01]} 30. Ng6 {[%clk 0:00:51]}  Qh5 {[%clk 0:00:01]} 31. Ne7+ {[%clk 0:00:51]} 1-0


[Site "https://www.chess.com"]

[Event "Titled Tuesday Blitz February 21 Late 2023"]
[White "Holt, Conrad"]
[Black "Fiorito, Francisco"]
[WhiteFideId "2034387"]
[BlackFideId "180165"]
[WhiteElo "2540"]
[BlackElo "2305"]
[Result "1-0"]
[Round "11"]
[TimeControl "180+2"]
[Date "2023.02.21"]
[WhiteClock "0:01:04"]
[BlackClock "0:00:02"]

1. d4 {[%clk 0:03:00]}  Nf6 {[%clk 0:02:58]} 2. c4 {[%clk 0:03:01]}  b6 {[%clk 0:02:56]} 3. f3 {[%clk 0:02:56]}  Nc6 {[%clk 0:02:55]} 4. d5 {[%clk 0:02:53]}  Ne5 {[%clk 0:02:55]} 5. e4 {[%clk 0:02:53]}  e6 {[%clk 0:02:55]} 6. Be3 {[%clk 0:02:51]}  Bc5 {[%clk 0:02:52]} 7. Bxc5 {[%clk 0:02:49]}  bxc5 {[%clk 0:02:53]} 8. f4 {[%clk 0:02:35]}  Ng6 {[%clk 0:02:53]} 9. e5 {[%clk 0:02:34]}  Ng8 {[%clk 0:02:28]} 10. Nh3 {[%clk 0:02:27]}  Rb8 {[%clk 0:02:23]} 11. b3 {[%clk 0:02:26]}  Bb7 {[%clk 0:02:20]} 12. Nc3 {[%clk 0:02:25]}  N8e7 {[%clk 0:02:10]} 13. Be2 {[%clk 0:02:22]}  O-O {[%clk 0:02:04]} 14. O-O {[%clk 0:02:20]}  d6 {[%clk 0:02:00]} 15. dxe6 {[%clk 0:02:14]}  fxe6 {[%clk 0:02:01]} 16. Ng5 {[%clk 0:02:11]}  dxe5 {[%clk 0:01:45]} 17. Nxe6 {[%clk 0:02:11]}  Qxd1 {[%clk 0:01:42]} 18. Raxd1 {[%clk 0:02:11]}  Rf6 {[%clk 0:01:42]} 19. Nxc5 {[%clk 0:02:05]}  Rxf4 {[%clk 0:01:17]} 20. Nxb7 {[%clk 0:01:55]}  Rxb7 {[%clk 0:01:17]} 21. Bf3 {[%clk 0:01:51]}  Rb6 {[%clk 0:01:16]} 22. Rd7 {[%clk 0:01:49]}  c6 {[%clk 0:00:56]} 23. Rxa7 {[%clk 0:01:47]}  h6 {[%clk 0:00:52]} 24. g3 {[%clk 0:01:41]}  Rf6 {[%clk 0:00:51]} 25. Ne4 {[%clk 0:01:39]}  Rf7 {[%clk 0:00:47]} 26. Bh5 {[%clk 0:01:33]}  Rxf1+ {[%clk 0:00:46]} 27. Kxf1 {[%clk 0:01:33]}  Rb8 {[%clk 0:00:46]} 28. Ke2 {[%clk 0:01:31]}  Rd8 {[%clk 0:00:44]} 29. Nc5 {[%clk 0:01:23]}  Rd6 {[%clk 0:00:38]} 30. a4 {[%clk 0:01:20]}  Nf5 {[%clk 0:00:38]} 31. a5 {[%clk 0:01:14]}  Nd4+ {[%clk 0:00:38]} 32. Kf1 {[%clk 0:01:12]}  Rf6+ {[%clk 0:00:27]} 33. Kg2 {[%clk 0:01:12]}  Nc2 {[%clk 0:00:22]} 34. a6 {[%clk 0:01:08]}  Ne3+ {[%clk 0:00:20]} 35. Kh3 {[%clk 0:01:08]}  Nf8 {[%clk 0:00:02]} 36. Rf7 {[%clk 0:01:04]} 1-0


[Site "https://www.chess.com"]

[Event "Titled Tuesday Blitz February 21 Late 2023"]
[White "Pakleza, Zbigniew"]
[Black "Petukhov, Dmitry"]
[WhiteFideId "1119290"]
[BlackFideId "4142748"]
[WhiteElo "2494"]
[BlackElo "2350"]
[Result "1-0"]
[Round "11"]
[TimeControl "180+2"]
[Date "2023.02.21"]
[WhiteClock "0:00:05"]
[BlackClock "0:00:02"]

1. d4 {[%clk 0:03:00]}  Nf6 {[%clk 0:02:59]} 2. Nf3 {[%clk 0:03:00]}  g6 {[%clk 0:03:00]} 3. Bf4 {[%clk 0:03:01]}  Bg7 {[%clk 0:02:59]} 4. e3 {[%clk 0:03:01]}  O-O {[%clk 0:02:59]} 5. Be2 {[%clk 0:03:01]}  d6 {[%clk 0:02:58]} 6. h3 {[%clk 0:03:01]}  Nbd7 {[%clk 0:02:58]} 7. O-O {[%clk 0:03:01]}  Re8 {[%clk 0:02:57]} 8. c4 {[%clk 0:03:01]}  c5 {[%clk 0:02:57]} 9. Nc3 {[%clk 0:03:00]}  b6 {[%clk 0:02:48]} 10. d5 {[%clk 0:02:58]}  a6 {[%clk 0:02:46]} 11. a4 {[%clk 0:02:58]}  Nf8 {[%clk 0:02:46]} 12. e4 {[%clk 0:02:56]}  h6 {[%clk 0:02:46]} 13. Re1 {[%clk 0:02:44]}  g5 {[%clk 0:02:45]} 14. Bh2 {[%clk 0:02:44]}  Ng6 {[%clk 0:02:45]} 15. e5 {[%clk 0:02:42]}  dxe5 {[%clk 0:02:28]} 16. Nxe5 {[%clk 0:02:43]}  Nxe5 {[%clk 0:02:27]} 17. Bxe5 {[%clk 0:02:44]}  Bf5 {[%clk 0:02:25]} 18. Bf3 {[%clk 0:02:34]}  Qd7 {[%clk 0:02:19]} 19. Qb3 {[%clk 0:02:30]}  Qa7 {[%clk 0:01:32]} 20. a5 {[%clk 0:02:20]}  bxa5 {[%clk 0:01:18]} 21. Rxa5 {[%clk 0:02:20]}  h5 {[%clk 0:01:15]} 22. Qa3 {[%clk 0:02:09]}  g4 {[%clk 0:01:14]} 23. hxg4 {[%clk 0:02:10]}  hxg4 {[%clk 0:01:15]} 24. Bd1 {[%clk 0:02:06]}  Nd7 {[%clk 0:01:10]} 25. Bxg7 {[%clk 0:02:01]}  Kxg7 {[%clk 0:01:11]} 26. Ne4 {[%clk 0:01:57]}  Bxe4 {[%clk 0:01:07]} 27. Rxe4 {[%clk 0:01:56]}  Nf6 {[%clk 0:01:08]} 28. Re5 {[%clk 0:01:29]}  Qc7 {[%clk 0:00:55]} 29. Qc3 {[%clk 0:01:16]}  Rh8 {[%clk 0:00:46]} 30. Bxg4 {[%clk 0:01:08]}  Kf8 {[%clk 0:00:40]} 31. Bh3 {[%clk 0:01:01]}  Rg8 {[%clk 0:00:24]} 32. Ra1 {[%clk 0:00:57]}  a5 {[%clk 0:00:22]} 33. Rae1 {[%clk 0:00:55]}  Re8 {[%clk 0:00:20]} 34. Qd2 {[%clk 0:00:31]}  Rg6 {[%clk 0:00:19]} 35. g3 {[%clk 0:00:30]}  a4 {[%clk 0:00:16]} 36. Bf5 {[%clk 0:00:29]}  Rg7 {[%clk 0:00:15]} 37. Bc2 {[%clk 0:00:28]}  Qb6 {[%clk 0:00:14]} 38. Bxa4 {[%clk 0:00:24]}  Ra8 {[%clk 0:00:12]} 39. b3 {[%clk 0:00:25]}  Ra7 {[%clk 0:00:11]} 40. Qh6 {[%clk 0:00:21]}  Kg8 {[%clk 0:00:10]} 41. Rxe7 {[%clk 0:00:17]}  Rxe7 {[%clk 0:00:10]} 42. Rxe7 {[%clk 0:00:18]}  Rg6 {[%clk 0:00:09]} 43. Qe3 {[%clk 0:00:14]}  Kg7 {[%clk 0:00:09]} 44. Qe5 {[%clk 0:00:12]}  Qb4 {[%clk 0:00:07]} 45. Be8 {[%clk 0:00:10]}  Qd2 {[%clk 0:00:03]} 46. Rxf7+ {[%clk 0:00:09]}  Kg8 {[%clk 0:00:04]} 47. Rxf6 {[%clk 0:00:05]}  Qd1+ {[%clk 0:00:02]} 48. Kg2 {[%clk 0:00:05]} 1-0


[Site "https://www.chess.com"]

[Event "Titled Tuesday Blitz February 21 Late 2023"]
[White "Zhurbinsky, David"]
[Black "Bambino Filho, Antonio Carlos"]
[WhiteFideId "2072904"]
[BlackFideId "2113163"]
[WhiteElo "2045"]
[BlackElo "2144"]
[Result "0-1"]
[Round "11"]
[TimeControl "180+2"]
[Date "2023.02.21"]
[WhiteClock "0:00:05"]
[BlackClock "0:00:07"]

1. e4 {[%clk 0:03:00]}  c5 {[%clk 0:02:59]} 2. Nf3 {[%clk 0:03:01]}  e6 {[%clk 0:02:58]} 3. c4 {[%clk 0:03:01]}  a6 {[%clk 0:02:57]} 4. d4 {[%clk 0:03:01]}  cxd4 {[%clk 0:02:58]} 5. Nxd4 {[%clk 0:03:02]}  Qc7 {[%clk 0:02:56]} 6. a3 {[%clk 0:03:01]}  Nf6 {[%clk 0:02:57]} 7. Nc3 {[%clk 0:03:02]}  Be7 {[%clk 0:02:56]} 8. Be2 {[%clk 0:03:02]}  d6 {[%clk 0:02:57]} 9. Be3 {[%clk 0:03:02]}  O-O {[%clk 0:02:57]} 10. O-O {[%clk 0:03:03]}  b6 {[%clk 0:02:53]} 11. Rc1 {[%clk 0:03:03]}  Bb7 {[%clk 0:02:54]} 12. f3 {[%clk 0:03:03]}  Nbd7 {[%clk 0:02:54]} 13. Qd2 {[%clk 0:03:02]}  Rac8 {[%clk 0:02:45]} 14. Rfd1 {[%clk 0:03:02]}  Qb8 {[%clk 0:02:45]} 15. Bf1 {[%clk 0:03:03]}  Rfd8 {[%clk 0:02:45]} 16. Qf2 {[%clk 0:03:03]}  Ne5 {[%clk 0:02:39]} 17. b3 {[%clk 0:02:57]}  d5 {[%clk 0:02:30]} 18. cxd5 {[%clk 0:02:57]}  Bxa3 {[%clk 0:02:26]} 19. Ra1 {[%clk 0:02:22]}  Rxc3 {[%clk 0:02:12]} 20. Rxa3 {[%clk 0:02:21]}  exd5 {[%clk 0:02:12]} 21. Qd2 {[%clk 0:02:03]}  Rcc8 {[%clk 0:01:56]} 22. Bg5 {[%clk 0:01:53]}  dxe4 {[%clk 0:01:51]} 23. Bxf6 {[%clk 0:01:48]}  gxf6 {[%clk 0:01:52]} 24. Qh6 {[%clk 0:01:46]}  Rxd4 {[%clk 0:01:01]} 25. Rxd4 {[%clk 0:01:47]}  Ng6 {[%clk 0:00:55]} 26. fxe4 {[%clk 0:01:40]}  Qe5 {[%clk 0:00:55]} 27. Qd2 {[%clk 0:01:36]}  Qc5 {[%clk 0:00:45]} 28. b4 {[%clk 0:01:34]}  Qe5 {[%clk 0:00:42]} 29. Bxa6 {[%clk 0:01:14]}  Bxa6 {[%clk 0:00:43]} 30. Rxa6 {[%clk 0:01:15]}  Rc1+ {[%clk 0:00:28]} 31. Kf2 {[%clk 0:01:08]}  Rb1 {[%clk 0:00:19]} 32. Rxb6 {[%clk 0:00:58]}  Kg7 {[%clk 0:00:14]} 33. g3 {[%clk 0:00:53]}  Qh5 {[%clk 0:00:13]} 34. Kg2 {[%clk 0:00:39]}  Ne5 {[%clk 0:00:13]} 35. Qf2 {[%clk 0:00:34]}  Ng4 {[%clk 0:00:12]} 36. Qd2 {[%clk 0:00:17]}  Qxh2+ {[%clk 0:00:10]} 37. Kf3 {[%clk 0:00:18]}  Ne5+ {[%clk 0:00:10]} 38. Ke3 {[%clk 0:00:05]}  Qxg3+ {[%clk 0:00:09]} 39. Ke2 {[%clk 0:00:05]}  Qf3# {[%clk 0:00:07]} 0-1


[Site "https://www.chess.com"]

[Event "Titled Tuesday Blitz February 21 Late 2023"]
[White "Solon, Nathan"]
[Black "Przybylski, Wojciech"]
[WhiteFideId "2017229"]
[BlackFideId "1117599"]
[WhiteElo "2306"]
[BlackElo "2321"]
[Result "0-1"]
[Round "11"]
[TimeControl "180+2"]
[Date "2023.02.21"]
[WhiteClock "0:00:04"]
[BlackClock "0:00:42"]

1. Nf3 {[%clk 0:03:00]}  Nf6 {[%clk 0:02:53]} 2. g3 {[%clk 0:03:00]}  e6 {[%clk 0:02:43]} 3. Bg2 {[%clk 0:03:00]}  d5 {[%clk 0:02:44]} 4. O-O {[%clk 0:02:59]}  Be7 {[%clk 0:02:45]} 5. c4 {[%clk 0:02:59]}  O-O {[%clk 0:02:46]} 6. b3 {[%clk 0:02:59]}  a5 {[%clk 0:02:45]} 7. Nc3 {[%clk 0:02:55]}  c6 {[%clk 0:02:44]} 8. d4 {[%clk 0:02:49]}  Nbd7 {[%clk 0:02:43]} 9. Bb2 {[%clk 0:02:46]}  Rb8 {[%clk 0:02:43]} 10. Qc2 {[%clk 0:02:32]}  b5 {[%clk 0:02:40]} 11. e4 {[%clk 0:02:30]}  bxc4 {[%clk 0:02:39]} 12. e5 {[%clk 0:02:24]}  cxb3 {[%clk 0:02:37]} 13. axb3 {[%clk 0:02:25]}  Ne4 {[%clk 0:02:34]} 14. Nxe4 {[%clk 0:02:22]}  dxe4 {[%clk 0:02:35]} 15. Nd2 {[%clk 0:02:15]}  c5 {[%clk 0:02:34]} 16. Nxe4 {[%clk 0:02:09]}  cxd4 {[%clk 0:02:33]} 17. Bxd4 {[%clk 0:02:10]}  Bb7 {[%clk 0:02:33]} 18. Rfd1 {[%clk 0:02:07]}  Bd5 {[%clk 0:02:33]} 19. Nd2 {[%clk 0:01:57]}  Bxg2 {[%clk 0:02:30]} 20. Kxg2 {[%clk 0:01:58]}  Qc8 {[%clk 0:02:28]} 21. Qxc8 {[%clk 0:01:52]}  Rfxc8 {[%clk 0:02:29]} 22. Rxa5 {[%clk 0:01:50]}  Bb4 {[%clk 0:02:27]} 23. Ra7 {[%clk 0:01:51]}  Nc5 {[%clk 0:02:21]} 24. Bxc5 {[%clk 0:01:26]}  Bxc5 {[%clk 0:02:22]} 25. Rd7 {[%clk 0:01:26]}  h5 {[%clk 0:02:14]} 26. Ne4 {[%clk 0:01:26]}  Bf8 {[%clk 0:02:13]} 27. Ng5 {[%clk 0:01:25]}  Rxb3 {[%clk 0:02:07]} 28. Rxf7 {[%clk 0:01:21]}  Rb2 {[%clk 0:02:05]} 29. Rdd7 {[%clk 0:01:17]}  Re8 {[%clk 0:01:58]} 30. h4 {[%clk 0:01:13]}  Re2 {[%clk 0:01:56]} 31. Nf3 {[%clk 0:01:08]}  Re4 {[%clk 0:01:55]} 32. Rb7 {[%clk 0:01:04]}  Ra8 {[%clk 0:01:53]} 33. Rfc7 {[%clk 0:00:54]}  Re2 {[%clk 0:01:50]} 34. Ng5 {[%clk 0:00:32]}  Rxe5 {[%clk 0:01:45]} 35. Rc6 {[%clk 0:00:32]}  Re8 {[%clk 0:01:42]} 36. Rbb6 {[%clk 0:00:31]}  Bc5 {[%clk 0:01:27]} 37. Rb5 {[%clk 0:00:32]}  Bd4 {[%clk 0:01:14]} 38. Rxe5 {[%clk 0:00:32]}  Bxe5 {[%clk 0:01:15]} 39. Nxe6 {[%clk 0:00:32]}  Bf6 {[%clk 0:01:11]} 40. f4 {[%clk 0:00:31]}  Kf7 {[%clk 0:01:09]} 41. f5 {[%clk 0:00:31]}  Ra8 {[%clk 0:01:05]} 42. Nf4 {[%clk 0:00:30]}  Ra5 {[%clk 0:01:04]} 43. Rc7+ {[%clk 0:00:25]}  Kg8 {[%clk 0:01:01]} 44. Nxh5 {[%clk 0:00:24]}  Bd4 {[%clk 0:01:00]} 45. g4 {[%clk 0:00:19]}  Ra3 {[%clk 0:00:59]} 46. Rd7 {[%clk 0:00:17]}  Be5 {[%clk 0:00:58]} 47. g5 {[%clk 0:00:14]}  Ra4 {[%clk 0:00:53]} 48. f6 {[%clk 0:00:06]}  gxf6 {[%clk 0:00:50]} 49. Nxf6+ {[%clk 0:00:06]}  Kf8 {[%clk 0:00:49]} 50. Nh7+ {[%clk 0:00:03]}  Ke8 {[%clk 0:00:49]} 51. Rb7 {[%clk 0:00:03]}  Rxh4 {[%clk 0:00:46]} 52. g6 {[%clk 0:00:04]}  Rh6 {[%clk 0:00:42]} 0-1


[Site "https://www.chess.com"]

[Event "Titled Tuesday Blitz February 21 Late 2023"]
[White "Manukyan, Sargis V."]
[Black "Aydincelebi, Kagan"]
[WhiteFideId "13303465"]
[BlackFideId "6361102"]
[WhiteElo "2253"]
[BlackElo "2280"]
[Result "0-1"]
[Round "11"]
[TimeControl "180+2"]
[Date "2023.02.21"]
[WhiteClock "0:00:07"]
[BlackClock "0:00:10"]

1. Nf3 {[%clk 0:02:46]}  c5 {[%clk 0:02:59]} 2. g3 {[%clk 0:02:46]}  Nc6 {[%clk 0:02:59]} 3. d4 {[%clk 0:02:45]}  cxd4 {[%clk 0:02:58]} 4. Nxd4 {[%clk 0:02:46]}  Nf6 {[%clk 0:02:59]} 5. Bg2 {[%clk 0:02:46]}  g6 {[%clk 0:02:59]} 6. O-O {[%clk 0:02:46]}  Bg7 {[%clk 0:02:59]} 7. c4 {[%clk 0:02:47]}  O-O {[%clk 0:03:00]} 8. Nc3 {[%clk 0:02:47]}  Nxd4 {[%clk 0:03:00]} 9. Qxd4 {[%clk 0:02:48]}  d6 {[%clk 0:03:01]} 10. b3 {[%clk 0:02:48]}  Ne4 {[%clk 0:02:53]} 11. Qxe4 {[%clk 0:02:47]}  Bxc3 {[%clk 0:02:53]} 12. Bh6 {[%clk 0:02:44]}  Bxa1 {[%clk 0:02:53]} 13. Bxf8 {[%clk 0:02:42]}  Bf6 {[%clk 0:02:52]} 14. Bh6 {[%clk 0:02:42]}  Rb8 {[%clk 0:02:52]} 15. Qd3 {[%clk 0:02:32]}  Qa5 {[%clk 0:02:49]} 16. Qd2 {[%clk 0:02:22]}  Qa3 {[%clk 0:02:43]} 17. Be3 {[%clk 0:02:18]}  Be6 {[%clk 0:02:36]} 18. Rd1 {[%clk 0:02:12]}  b5 {[%clk 0:02:33]} 19. cxb5 {[%clk 0:02:03]}  Rxb5 {[%clk 0:02:33]} 20. Rc1 {[%clk 0:01:50]}  Qa5 {[%clk 0:02:14]} 21. Bc6 {[%clk 0:01:42]}  Qxd2 {[%clk 0:02:11]} 22. Bxd2 {[%clk 0:01:43]}  Rb8 {[%clk 0:02:09]} 23. e4 {[%clk 0:01:37]}  Kf8 {[%clk 0:01:55]} 24. Bh6+ {[%clk 0:01:35]}  Bg7 {[%clk 0:01:53]} 25. Bd2 {[%clk 0:01:26]}  Bg4 {[%clk 0:01:42]} 26. Kg2 {[%clk 0:01:25]}  Bd4 {[%clk 0:01:32]} 27. f3 {[%clk 0:01:22]}  Be6 {[%clk 0:01:32]} 28. Bh6+ {[%clk 0:01:22]}  Kg8 {[%clk 0:01:31]} 29. Kf1 {[%clk 0:01:20]}  f6 {[%clk 0:01:31]} 30. Bd2 {[%clk 0:01:19]}  Kf7 {[%clk 0:01:29]} 31. Ke2 {[%clk 0:01:18]}  h5 {[%clk 0:01:29]} 32. Kd3 {[%clk 0:01:14]}  Bb6 {[%clk 0:01:26]} 33. Bd5 {[%clk 0:01:08]}  Rh8 {[%clk 0:01:20]} 34. Be3 {[%clk 0:01:03]}  Rb8 {[%clk 0:01:00]} 35. Rc4 {[%clk 0:00:58]}  Bxe3 {[%clk 0:00:52]} 36. Kxe3 {[%clk 0:00:59]}  Rb5 {[%clk 0:00:52]} 37. Kd4 {[%clk 0:00:55]}  g5 {[%clk 0:00:47]} 38. Ra4 {[%clk 0:00:45]}  a5 {[%clk 0:00:45]} 39. Rc4 {[%clk 0:00:43]}  h4 {[%clk 0:00:44]} 40. f4 {[%clk 0:00:36]}  gxf4 {[%clk 0:00:41]} 41. gxf4 {[%clk 0:00:37]}  Rb8 {[%clk 0:00:38]} 42. Ra4 {[%clk 0:00:26]}  Rg8 {[%clk 0:00:31]} 43. Rxa5 {[%clk 0:00:24]}  Rg2 {[%clk 0:00:30]} 44. h3 {[%clk 0:00:20]}  Rh2 {[%clk 0:00:27]} 45. a4 {[%clk 0:00:19]}  Rxh3 {[%clk 0:00:26]} 46. Rb5 {[%clk 0:00:17]}  Bxd5 {[%clk 0:00:25]} 47. Kxd5 {[%clk 0:00:15]}  Rf3 {[%clk 0:00:19]} 48. Rb8 {[%clk 0:00:10]}  Kg7 {[%clk 0:00:15]} 49. b4 {[%clk 0:00:07]}  h3 {[%clk 0:00:15]} 50. Rc8 {[%clk 0:00:07]}  Rxf4 {[%clk 0:00:08]} 51. Rc1 {[%clk 0:00:08]}  f5 {[%clk 0:00:08]} 52. exf5 {[%clk 0:00:06]}  Rxb4 {[%clk 0:00:09]} 53. Ke6 {[%clk 0:00:06]}  Re4+ {[%clk 0:00:09]} 54. Kd7 {[%clk 0:00:06]}  Kf6 {[%clk 0:00:09]} 55. Rf1 {[%clk 0:00:06]}  Rxa4 {[%clk 0:00:09]} 56. Rh1 {[%clk 0:00:06]}  Ra3 {[%clk 0:00:10]} 57. Re1 {[%clk 0:00:05]}  d5 {[%clk 0:00:10]} 58. Rd1 {[%clk 0:00:05]}  h2 {[%clk 0:00:09]} 59. Rh1 {[%clk 0:00:06]}  Rh3 {[%clk 0:00:09]} 60. Kc6 {[%clk 0:00:06]}  d4 {[%clk 0:00:09]} 61. Kd5 {[%clk 0:00:07]}  d3 {[%clk 0:00:10]} 62. Rxh2 {[%clk 0:00:07]}  Rxh2 {[%clk 0:00:10]} 0-1


[Site "https://www.chess.com"]

[Event "Titled Tuesday Blitz February 21 Late 2023"]
[White "Yeritsyan, Hayk"]
[Black "Fiorito, Joaquin"]
[WhiteFideId "13307320"]
[BlackFideId "180173"]
[WhiteElo "2241"]
[BlackElo "2405"]
[Result "0-1"]
[Round "11"]
[TimeControl "180+2"]
[Date "2023.02.21"]
[WhiteClock "0:00:13"]
[BlackClock "0:01:13"]

1. d4 {[%clk 0:02:59]}  Nf6 {[%clk 0:02:59]} 2. Nf3 {[%clk 0:03:00]}  d5 {[%clk 0:02:59]} 3. e3 {[%clk 0:03:00]}  c6 {[%clk 0:02:57]} 4. Bd3 {[%clk 0:02:58]}  Bg4 {[%clk 0:02:57]} 5. Nbd2 {[%clk 0:02:58]}  Nbd7 {[%clk 0:02:58]} 6. c3 {[%clk 0:02:59]}  e6 {[%clk 0:02:58]} 7. e4 {[%clk 0:02:59]}  dxe4 {[%clk 0:02:56]} 8. Nxe4 {[%clk 0:03:00]}  Nxe4 {[%clk 0:02:57]} 9. Bxe4 {[%clk 0:03:01]}  Nf6 {[%clk 0:02:57]} 10. Bd3 {[%clk 0:03:02]}  Be7 {[%clk 0:02:56]} 11. Bf4 {[%clk 0:03:01]}  O-O {[%clk 0:02:57]} 12. O-O {[%clk 0:03:01]}  c5 {[%clk 0:02:57]} 13. dxc5 {[%clk 0:02:58]}  Bxc5 {[%clk 0:02:58]} 14. Be2 {[%clk 0:02:59]}  Qe7 {[%clk 0:02:54]} 15. Bg5 {[%clk 0:02:49]}  Rfd8 {[%clk 0:02:54]} 16. Qa4 {[%clk 0:02:48]}  Bh5 {[%clk 0:02:46]} 17. Rad1 {[%clk 0:02:43]}  a6 {[%clk 0:02:46]} 18. Qh4 {[%clk 0:02:39]}  Bg6 {[%clk 0:02:44]} 19. Ne5 {[%clk 0:02:37]}  h6 {[%clk 0:02:40]} 20. Nxg6 {[%clk 0:02:32]}  fxg6 {[%clk 0:02:38]} 21. Bxf6 {[%clk 0:02:08]}  Qxf6 {[%clk 0:02:38]} 22. Qxf6 {[%clk 0:02:02]}  gxf6 {[%clk 0:02:39]} 23. Bf3 {[%clk 0:02:00]}  Rab8 {[%clk 0:02:27]} 24. Rfe1 {[%clk 0:01:56]}  Kf7 {[%clk 0:02:23]} 25. Kf1 {[%clk 0:01:50]}  b6 {[%clk 0:02:15]} 26. Rxd8 {[%clk 0:01:43]}  Rxd8 {[%clk 0:02:16]} 27. Rd1 {[%clk 0:01:43]}  Rxd1+ {[%clk 0:02:15]} 28. Bxd1 {[%clk 0:01:44]}  a5 {[%clk 0:02:15]} 29. Ke2 {[%clk 0:01:37]}  Ke7 {[%clk 0:02:09]} 30. f3 {[%clk 0:01:35]}  f5 {[%clk 0:02:09]} 31. Kd3 {[%clk 0:01:35]}  Kd6 {[%clk 0:02:09]} 32. a3 {[%clk 0:01:33]}  Bg1 {[%clk 0:02:09]} 33. h3 {[%clk 0:01:33]}  Ke5 {[%clk 0:02:08]} 34. b4 {[%clk 0:01:27]}  axb4 {[%clk 0:02:07]} 35. cxb4 {[%clk 0:01:25]}  Kf4 {[%clk 0:02:07]} 36. a4 {[%clk 0:01:17]}  Kg3 {[%clk 0:02:07]} 37. Bb3 {[%clk 0:01:15]}  Kxg2 {[%clk 0:01:45]} 38. Ke2 {[%clk 0:01:10]}  Kxh3 {[%clk 0:01:41]} 39. Bxe6 {[%clk 0:01:08]}  Kg3 {[%clk 0:01:41]} 40. Bf7 {[%clk 0:01:06]}  g5 {[%clk 0:01:40]} 41. Bg6 {[%clk 0:01:04]}  f4 {[%clk 0:01:38]} 42. a5 {[%clk 0:00:51]}  bxa5 {[%clk 0:01:37]} 43. bxa5 {[%clk 0:00:52]}  Kh4 {[%clk 0:01:37]} 44. Kf1 {[%clk 0:00:49]}  Ba7 {[%clk 0:01:36]} 45. Kg2 {[%clk 0:00:49]}  h5 {[%clk 0:01:37]} 46. Bf5 {[%clk 0:00:48]}  g4 {[%clk 0:01:36]} 47. fxg4 {[%clk 0:00:46]}  hxg4 {[%clk 0:01:37]} 48. Be4 {[%clk 0:00:46]}  Kg5 {[%clk 0:01:38]} 49. a6 {[%clk 0:00:45]}  Kf6 {[%clk 0:01:38]} 50. Bb7 {[%clk 0:00:38]}  Bb8 {[%clk 0:01:18]} 51. Bc8 {[%clk 0:00:34]}  f3+ {[%clk 0:01:17]} 52. Kf2 {[%clk 0:00:25]}  Kg5 {[%clk 0:01:15]} 53. Bb7 {[%clk 0:00:20]}  Kf4 {[%clk 0:01:13]} 54. Kf1 {[%clk 0:00:18]}  g3 {[%clk 0:01:12]} 55. Kg1 {[%clk 0:00:13]}  Ba7+ {[%clk 0:01:11]} 56. Kh1 {[%clk 0:00:13]}  g2+ {[%clk 0:01:12]} 57. Kh2 {[%clk 0:00:13]}  g1=Q+ {[%clk 0:01:13]} 0-1


[Site "https://www.chess.com"]